bitfinex/quotes_ETHUSD_20251009
["timestamp","ask_amount","ask_price","bid_price","bid_amount"]
[1760011935823,2.2792446,4387.5,4387.3,9.4606]
[1760011936532,2.27915869,4387.6,4387.3,9.4606]
[1760011937408,2.27921139,4387.5,4387.3,9.4606]
[1760011937815,2.27841139,4387.5,4387.3,9.4606]
[1760011938918,2.27841139,4387.5,4387.4,0.02279254]
[1760011939634,2.27841139,4387.5,4387.4,8.84879254]
[1760011939851,2.27841139,4387.5,4387.4,8.826]
[1760011941338,2.27910639,4387.7,4387.2,0.1136]
[1760011941339,2.27930617,4387.3,4387.2,0.1136]
[1760011941553,2.27930617,4387.3,4386.7,9.482]
[1760011941554,2.2795862,4386.8,4386.7,9.482]
[1760011941846,2.27952335,4386.9,4386.8,0.1136]
[1760011942030,2.27930151,4387.4,4386.9,0.6336]
[1760011942231,0.61236738,4387.8,4387.2,0.1136]
[1760011942232,0.49163138,4387.6,4387.2,0.1136]
[1760011942437,0.002,4387.8,4387.2,0.7472]
[1760011942438,2.27930617,4387.3,4387.2,0.7472]
[1760011942734,2.27924343,4387.5,4387.3,0.6336]
[1760011942937,2.27915033,4387.6,4387.5,0.6336]
[1760011943233,0.002,4387.8,4387.5,0.6336]
[1760011943234,0.002,4387.8,4387.5,3.74603]
[1760011943411,0.002,4387.8,4387.7,0.6336]
[1760011943620,2.27910002,4387.7,4387.6,0.6336]
[1760011943818,2.28106262,4387.8,4387.6,18.9416]
[1760011944031,0.002,4387.8,4387.6,18.9416]
[1760011945224,0.002,4387.8,4387.7,6.456]
[1760011945430,0.002,4387.8,4387.7,9.4596]
[1760011945950,2.28104644,4387.8,4387.7,9.4596]
[1760011950739,2.28104644,4387.8,4387.7,10.77318084]
[1760011950740,0.002,4387.8,4387.7,10.77318084]
[1760011951621,0.002,4387.8,4387.7,14.97227922]
[1760011951821,0.002,4388.3,4388.1,2.5536]
[1760011952135,0.002,4388.3,4388.2,7.0896]
[1760011952330,0.002,4388.3,4388.2,20.2056587]
[1760011952543,0.002,4388.3,4388.2,15.89971787]
[1760011953061,0.002,4388.3,4388.2,4.57416587]
[1760011953220,0.002,4388.3,4388.2,2.5536]
[1760011953427,2.28078677,4388.3,4388.2,19.7432]
[1760011954023,2.28078677,4388.3,4388.2,17.8232]
[1760011955355,2.28078677,4388.3,4388.2,0.7472]
[1760011955532,2.28078677,4388.3,4388.2,9.4596]
[1760011956127,2.74408677,4388.3,4388.2,9.4596]
[1760011956628,2.28078677,4388.3,4388.2,9.4596]
[1760011958460,2.28078677,4388.3,4388.2,9.6807]
[1760011958661,2.28078677,4388.3,4388.2,9.4596]
[1760011959355,0.002,4388.3,4388.2,9.4596]
[1760011959560,0.002,4388.3,4388.2,9.5732]
[1760011959859,2.28078677,4388.3,4388.2,9.5732]
[1760011960664,2.27998677,4388.3,4388.2,9.5732]
[1760011963479,0.0012,4388.3,4388.2,9.5732]
[1760011963643,2.27998677,4388.3,4388.2,10.43316814]
[1760011963839,2.27998677,4388.3,4388.2,9.7943]
[1760011964034,2.27998677,4388.3,4388.2,9.5732]
[1760011965610,2.27998677,4388.3,4388.2,19.0522]
[1760011966208,2.27998677,4388.3,4388.2,0.7472]
[1760011966362,2.27998677,4388.3,4388.2,19.0522]
[1760011966761,0.0012,4388.3,4388.2,9.5722]
[1760011967081,0.0012,4388.3,4388.2,9.7933]
[1760011967672,0.0012,4388.3,4388.2,13.64063]
[1760011968085,0.0012,4388.3,4388.2,31.883672]
[1760011968284,0.0012,4388.3,4388.2,19.951059]
[1760011968501,0.0012,4388.3,4388.2,19.483704]
[1760011968893,0.0012,4388.3,4388.2,19.113275]
[1760011969090,0.0012,4388.3,4388.2,19.4721137]
[1760011969289,0.0012,4388.3,4388.2,19.0719407]
[1760011969502,0.0012,4388.3,4388.2,16.793102]
[1760011969803,0.0012,4388.3,4388.2,16.8843022]
[1760011970009,0.0012,4388.3,4388.2,19.1631409]
[1760011971505,0.0012,4388.3,4388.2,7.8382022]
[1760011971710,0.0012,4388.3,4388.2,19.0298002]
[1760011971907,0.0012,4388.3,4388.2,18.304]
[1760011972073,0.0012,4388.3,4388.2,19.1587]
[1760011972737,0.0012,4388.3,4388.2,22.053179]
[1760011974433,0.0012,4388.3,4388.2,21.653725]
[1760011974591,0.0012,4388.3,4388.2,23.8875067]
[1760011974789,0.0012,4388.3,4388.2,23.9963447]
[1760011974988,0.0012,4388.3,4388.2,21.3924817]
[1760011976326,0.0012,4388.3,4388.2,18.9376]
[1760011976923,0.0012,4388.3,4388.2,19.1587]
[1760011978626,2.27998677,4388.3,4388.2,16.5666]
[1760011978824,2.27998677,4388.3,4388.2,18.9356]
[1760011979319,2.27998677,4388.3,4388.2,19.0492]
[1760011980221,2.21998677,4388.3,4388.2,19.0492]
[1760011980420,2.21998677,4388.3,4388.2,18.9356]
[1760011981626,2.69098677,4388.3,4388.2,12.4816]
[1760011981924,2.69098677,4388.3,4388.2,18.9356]
[1760011982496,2.27889063,4388.1,4388.0,0.1136]
[1760011982700,2.27889063,4388.1,4387.1,0.001]
[1760011982701,2.27913457,4387.7,4387.6,9.479]
[1760011982898,2.27913457,4387.7,4387.6,18.302]
[1760011983118,2.27913457,4387.7,4387.6,18.9356]
[1760011983536,2.27909838,4387.7,4387.6,18.9356]
[1760011983741,2.27909838,4387.7,4387.6,20.84052]
[1760011983919,2.27909838,4387.7,4387.6,18.9356]
[1760011985111,2.27909838,4387.7,4387.3,0.001]
[1760011985112,2.75009838,4387.7,4387.3,0.001]
[1760011985455,2.51271161,4387.9,4387.3,0.001]
[1760011985456,5.52025533,4387.4,4387.3,0.001]
[1760011985656,7.93138166,4387.4,4387.3,2.48506093]
[1760011985815,2.27935813,4387.2,4387.1,0.001]
[1760011986010,2.27935813,4387.2,4387.1,6.455]
[1760011986239,2.75035813,4387.2,4387.1,6.455]
[1760011986424,2.27961793,4386.7,4386.6,0.001]
[1760011986629,2.27961793,4386.7,4386.6,6.455]
[1760011986944,3.21789428,4386.7,4386.6,6.455]
[1760011991765,3.21789428,4386.7,4386.6,0.001]
[1760011991966,3.21789428,4386.7,4386.6,6.456]
[1760011993382,3.21789428,4386.7,4386.6,6.457]
[1760011995138,3.21789428,4386.7,4386.6,0.001]
[1760012000769,3.21789428,4386.7,4384.5,0.001]
[1760012000770,2.85827635,4386.7,4384.5,0.001]
[1760012000973,2.2804497,4385.1,4384.8,2.371]
[1760012001273,2.2804497,4385.1,4384.5,0.001]
[1760012001488,2.2804497,4385.1,4384.7,6.457]
[1760012001489,2.7254497,4385.1,4384.7,6.457]
[1760012006801,2.7246497,4385.1,4384.7,6.457]
[1760012008511,2.2796497,4385.1,4384.8,0.6336]
[1760012009002,2.2796497,4385.1,4384.5,0.001]
[1760012009003,2.7246497,4385.1,4384.9,6.458]
[1760012010870,2.7246497,4385.1,4384.6,0.1136]
[1760012011078,2.7246497,4385.1,4384.8,0.343]
[1760012011882,2.2796497,4385.1,4384.8,0.343]
[1760012013477,2.2796497,4385.1,4384.9,0.6336]
[1760012014009,2.28031658,4385.4,4385.1,0.6336]
[1760012014180,2.28033735,4385.4,4385.1,0.6336]
[1760012014382,2.28035014,4385.3,4385.1,0.6336]
[1760012014593,2.365,4386.6,4385.1,0.6336]
[1760012014792,2.27982582,4386.3,4385.2,0.02280397]
[1760012014979,0.48997274,4386.3,4385.3,3.0046]
[1760012015175,2.28019995,4385.6,4385.5,0.6336]
[1760012019785,0.445,4385.6,4384.6,0.2211]
[1760012020082,2.2803977,4385.2,4385.1,4.0966]
[1760012024136,2.2803977,4385.2,4385.1,4.2102]
[1760012028393,0.445,4385.6,4385.1,4.2102]
[1760012028722,2.39372725,4385.8,4385.1,4.2102]
[1760012028723,2.28027751,4385.5,4385.1,4.2102]
[1760012028930,2.28029859,4385.4,4385.1,4.2102]
[1760012029095,2.28029859,4385.4,4385.3,0.6336]
[1760012030027,2.28034792,4385.3,4385.2,0.6336]
[1760012030232,2.28031193,4385.4,4385.2,0.6336]
[1760012030539,2.2803457,4385.3,4385.2,0.6336]
[1760012031229,2.28030913,4385.4,4385.2,0.6336]
[1760012031416,2.2803457,4385.3,4385.2,0.6336]
[1760012032360,2.28030073,4385.4,4385.2,0.6336]
[1760012033832,2.7186457,4385.3,4385.2,0.6336]
[1760012034534,2.2803457,4385.3,4385.2,0.6336]
[1760012034833,2.2803977,4385.2,4385.1,3.463]
[1760012035020,2.7186977,4385.2,4385.1,3.463]
[1760012036253,2.28033826,4385.4,4385.1,3.463]
[1760012036454,2.2803977,4385.2,4385.1,3.463]
[1760012037449,2.7186977,4385.2,4385.1,3.463]
[1760012040452,2.7186977,4385.2,4385.0,0.001]
[1760012040453,4.3140497,4385.1,4385.0,0.001]
[1760012040669,4.80584316,4385.1,4385.0,0.001]
[1760012040950,5.24414316,4385.1,4385.0,0.001]
[1760012047654,4.6387497,4385.1,4385.0,0.001]
[1760012048352,2.2804497,4385.1,4385.0,0.001]
[1760012048528,2.3940497,4385.1,4385.0,0.001]
[1760012048734,2.8323497,4385.1,4385.0,0.001]
[1760012049120,2.3940497,4385.1,4385.0,0.001]
[1760012049550,2.8323497,4385.1,4385.0,0.001]
[1760012050459,2.2804497,4385.1,4385.0,0.001]
[1760012051562,6.43166857,4385.1,4385.0,0.001]
[1760012052353,3.18619026,4385.1,4385.0,0.001]
[1760012052862,3.18539026,4385.1,4385.0,0.001]
[1760012053762,2.2796497,4385.1,4385.0,0.001]
[1760012053946,2.7507497,4385.1,4385.0,0.001]
[1760012055755,7.91622801,4385.1,4385.0,0.001]
[1760012056639,4.6707497,4385.1,4385.0,0.001]
[1760012059852,7.91622801,4385.1,4385.0,0.001]
[1760012060161,9.65281719,4385.1,4385.0,0.001]
[1760012066565,16.11081719,4385.1,4385.0,0.001]
[1760012066970,6.40733888,4385.1,4385.0,0.001]
[1760012068151,9.65281719,4385.1,4385.0,0.001]
[1760012070175,6.40733888,4385.1,4385.0,0.001]
[1760012071058,6.40933888,4385.1,4385.0,0.001]
[1760012075846,6.40853888,4385.1,4385.0,0.001]
[1760012082393,9.65401719,4385.1,4385.0,0.001]
[1760012083306,6.40853888,4385.1,4385.0,0.001]
[1760012084004,12.86653888,4385.1,4385.0,0.001]
[1760012086906,5.16296619,4385.1,4385.0,0.001]
[1760012087085,11.62096619,4385.1,4385.0,0.001]
[1760012089198,5.16296619,4385.1,4385.0,0.001]
[1760012097025,5.25428882,4385.1,4385.0,0.001]
[1760012097743,12.23622653,4385.1,4385.0,0.001]
[1760012097919,11.62096619,4385.1,4385.0,0.001]
[1760012098839,11.62016619,4385.1,4385.0,0.001]
[1760012100447,14.02016619,4385.1,4385.0,0.001]
[1760012100599,1.92,4385.0,4384.1,1e-08]
[1760012100800,7.44639615,4384.2,4384.1,1e-08]
[1760012101097,7.44639615,4384.2,4383.8,0.001]
[1760012101098,2.28107392,4383.9,4383.8,0.001]
[1760012101427,2.28123003,4383.6,4383.3,0.001]
[1760012101627,2.28123003,4383.6,4381.9,0.001]
[1760012101628,2.28154232,4383.0,4381.9,0.001]
[1760012101809,10.65954232,4383.0,4381.9,0.001]
[1760012102000,11.61135881,4383.0,4381.9,0.001]
[1760012102801,12.05904922,4383.0,4382.6,0.09133358]
[1760012103042,12.05904922,4383.0,4381.9,0.001]
[1760012103599,5.15335881,4383.0,4381.9,0.001]
[1760012103830,11.61135881,4383.0,4381.9,0.001]
[1760012104324,5.15335881,4383.0,4381.9,0.001]
[1760012104510,11.61135881,4383.0,4381.9,0.001]
[1760012105220,11.12034232,4383.0,4381.9,0.001]
[1760012105527,14.36582063,4383.0,4381.9,0.001]
[1760012106432,14.36582063,4383.0,4382.4,0.001]
[1760012107836,14.85590843,4383.0,4382.4,0.001]
[1760012108258,14.85572398,4383.0,4382.4,0.001]
[1760012109908,8.39772398,4383.0,4382.4,0.001]
[1760012110212,15.93377997,4383.0,4382.4,0.001]
[1760012111524,12.77967248,4383.0,4382.4,0.001]
[1760012112148,12.28976913,4383.0,4382.4,0.001]
[1760012112320,12.19839831,4383.0,4382.4,0.001]
[1760012117664,12.28977351,4383.0,4382.4,0.001]
[1760012118165,12.77906643,4383.0,4382.4,0.001]
[1760012119165,15.17915754,4383.0,4382.4,0.001]
[1760012120385,2.28180262,4382.5,4382.4,1e-08]
[1760012120580,14.71170115,4382.5,4382.4,1e-08]
[1760012120865,15.15750115,4382.5,4382.4,1e-08]
[1760012121080,2.28190676,4382.3,4380.8,0.1136]
[1760012121246,2.28190676,4382.3,4379.7,0.2231]
[1760012121247,2.28263598,4380.9,4380.6,2.402]
[1760012121436,0.1136,4381.0,4380.6,2.402]
[1760012121437,2.72848809,4380.8,4380.6,2.402]
[1760012121773,2.2827402,4380.7,4380.6,3.0356]
[1760012121938,2.2819402,4380.7,4380.6,3.0356]
[1760012122805,0.1136,4381.0,4380.6,3.0356]
[1760012123184,2.2827402,4380.7,4380.6,3.0356]
[1760012124804,2.28270378,4380.8,4380.6,3.0356]
[1760012125194,0.4458,4380.9,4380.6,3.0356]
[1760012125396,0.1136,4381.0,4380.6,3.36194143]
[1760012125709,2.2827402,4380.7,4380.6,3.36194143]
[1760012126343,2.2827402,4380.7,4380.6,3.0356]
[1760012126543,2.7285402,4380.7,4380.6,3.0356]
[1760012126729,2.7285402,4380.7,4380.6,2.402]
[1760012127144,2.2827402,4380.7,4380.6,2.402]
[1760012127446,2.28270232,4380.8,4380.6,2.402]
[1760012127747,0.5594,4381.0,4380.6,2.402]
[1760012127748,2.2827402,4380.7,4380.6,2.402]
[1760012128339,0.1136,4381.0,4380.6,2.402]
[1760012128340,0.5594,4381.0,4380.6,2.402]
[1760012128655,2.2827402,4380.7,4380.6,2.402]
[1760012129015,0.5594,4381.0,4380.6,2.402]
[1760012129217,2.28263598,4380.9,4380.6,2.402]
[1760012129417,2.28268809,4380.8,4380.6,2.402]
[1760012129640,2.7285402,4380.7,4380.6,2.402]
[1760012129851,2.2827402,4380.7,4380.6,2.402]
[1760012130077,0.1136,4381.0,4380.6,2.402]
[1760012130259,0.1136,4381.0,4380.7,0.6336]
[1760012130566,2.28254226,4381.1,4380.7,0.8795274]
[1760012131315,2.28249611,4381.2,4380.7,0.8795274]
[1760012132020,0.1136,4381.3,4380.7,0.6564274]
[1760012132257,2.28252226,4381.2,4380.7,0.6564274]
[1760012132553,2.28254096,4381.1,4380.9,0.6336]
[1760012133220,0.61519128,4382.4,4381.1,0.6336]
[1760012133451,0.1136,4381.8,4381.3,0.6336]
[1760012133660,0.1136,4381.8,4381.1,0.6336]
[1760012133661,2.28223912,4381.7,4381.5,0.6336]
[1760012133831,2.28227131,4381.6,4381.5,0.6336]
[1760012134633,2.28227131,4381.6,4381.1,0.2231]
[1760012134634,2.28242758,4381.3,4381.2,4.074]
[1760012134839,2.72822758,4381.3,4381.2,4.074]
[1760012135757,0.1136,4381.8,4381.2,4.55612]
[1760012135959,2.28237848,4381.4,4381.2,4.55612]
[1760012136131,2.28242758,4381.3,4381.2,4.55612]
[1760012136630,2.28242758,4381.3,4381.2,4.074]
[1760012137330,1.92,4382.2,4381.3,0.6336]
[1760012137530,0.49170029,4382.1,4381.4,0.02282375]
[1760012137725,2.28227197,4381.6,4381.3,0.65642427]
[1760012137969,2.28223443,4381.7,4381.3,0.65642427]
[1760012138261,2.28223443,4381.7,4381.5,0.6336]
[1760012138475,2.28215558,4381.9,4381.5,0.6336]
[1760012138635,2.28217816,4381.8,4381.5,0.6336]
[1760012138831,2.2821291,4381.9,4381.5,0.6336]
[1760012139031,2.2820109,4382.1,4381.5,0.6336]
[1760012139233,2.72776048,4382.2,4381.5,0.6336]
[1760012139531,2.72776048,4382.2,4381.5,1.40673461]
[1760012139731,2.72776048,4382.2,4381.5,1.42955784]
[1760012140132,0.49173063,4382.2,4381.5,1.65265784]
[1760012140333,2.28193288,4382.3,4381.5,1.65265784]
[1760012140865,2.89679724,4382.9,4381.5,1.65265784]
[1760012140866,0.61519128,4383.0,4381.7,0.6336]
[1760012141030,0.49167301,4382.9,4381.8,0.70956513]
[1760012141230,2.28185583,4382.4,4382.0,0.6336]
[1760012142183,0.4458,4382.9,4381.8,1.37185875]
[1760012142184,0.002,4382.1,4381.8,0.46364346]
[1760012142347,0.002,4382.1,4381.9,8.834]
[1760012143242,0.002,4382.1,4382.0,0.87952062]
[1760012143880,0.002,4382.1,4382.0,3.1615836]
[1760012144257,0.002,4382.1,4382.0,0.87952062]
[1760012144449,0.002,4382.1,4382.0,2.35188352]
[1760012144648,0.002,4382.1,4382.0,2.3290629]
[1760012144851,0.0012,4382.1,4382.0,2.3290629]
[1760012146658,0.0012,4382.1,4382.0,2.1059629]
[1760012147264,0.0012,4382.1,4382.0,2.2195629]
[1760012148500,2.2832109,4382.1,4382.0,9.5802]
[1760012148960,2.7268109,4382.1,4382.0,8.833]
[1760012149554,2.28216714,4381.8,4381.7,6.46]
[1760012149868,2.72576714,4381.8,4381.7,6.46]
[1760012150188,2.72576714,4381.8,4381.2,2.373]
[1760012150189,2.28242758,4381.3,4381.2,2.373]
[1760012150489,2.28242758,4381.3,4380.6,0.001]
[1760012150490,2.28242758,4381.3,4380.7,0.68529684]
[1760012150491,2.28253178,4381.1,4380.7,0.68529684]
[1760012150811,2.28253178,4381.1,4380.8,0.797]
[1760012151095,0.4436,4381.0,4380.6,2.374]
[1760012151275,0.1136,4380.8,4380.6,2.374]
[1760012151599,2.7263402,4380.7,4380.6,0.001]
[1760012153488,2.2827402,4380.7,4380.6,0.001]
[1760012160318,2.7263402,4380.7,4380.6,0.001]
[1760012160799,2.2827402,4380.7,4380.6,0.001]
[1760012161999,2.7263402,4380.7,4380.6,0.001]
[1760012162202,3.23859822,4380.7,4380.6,0.001]
[1760012170116,3.23779822,4380.7,4380.6,0.001]
[1760012172722,0.1136,4380.8,4380.6,0.001]
[1760012172919,2.39629298,4380.8,4380.6,0.001]
[1760012173228,2.2827402,4380.7,4380.6,0.001]
[1760012174899,2.7507402,4380.7,4380.6,0.001]
[1760012175998,2.2827402,4380.7,4380.6,0.001]
[1760012176200,2.7507402,4380.7,4380.6,0.001]
[1760012176825,2.2827402,4380.7,4380.6,0.001]
[1760012179319,0.1136,4380.8,4380.6,0.001]
[1760012179533,2.2827402,4380.7,4380.6,0.001]
[1760012181833,2.7507402,4380.7,4380.6,0.001]
[1760012182542,2.2827402,4380.7,4380.6,0.001]
[1760012183311,2.7507402,4380.7,4380.6,0.001]
[1760012184352,2.2827402,4380.7,4380.6,0.001]
[1760012185545,2.7507402,4380.7,4380.6,0.001]
[1760012186047,2.2827402,4380.7,4380.6,0.001]
[1760012187015,2.7507402,4380.7,4380.6,0.001]
[1760012188248,2.2827402,4380.7,4380.6,0.001]
[1760012189919,2.7507402,4380.7,4380.6,0.001]
[1760012191350,3.26543914,4380.7,4380.6,0.001]
[1760012191546,2.7499402,4380.7,4380.6,0.001]
[1760012192951,2.2819402,4380.7,4380.6,0.001]
[1760012193157,2.8655402,4380.7,4380.6,0.001]
[1760012200247,2.3975402,4380.7,4380.6,0.001]
[1760012200952,2.8655402,4380.7,4380.6,0.001]
[1760012202990,2.3975402,4380.7,4380.6,0.001]
[1760012203374,2.2839402,4380.7,4380.6,0.001]
[1760012214084,2.2831402,4380.7,4380.6,0.001]
[1760012214396,2.7447402,4380.7,4380.6,0.001]
[1760012215178,2.2831402,4380.7,4380.6,0.001]
[1760012216094,2.2831402,4380.7,4380.6,0.2241]
[1760012216298,2.2831402,4380.7,4380.6,0.001]
[1760012217096,0.002,4380.7,4380.6,0.88052792]
[1760012217296,0.002,4380.7,4380.6,1.37382176]
[1760012217495,0.002,4380.7,4380.6,2.05911547]
[1760012217711,0.002,4380.7,4380.6,1.56582163]
[1760012217882,0.002,4380.7,4380.6,3.96221394]
[1760012219300,0.002,4380.7,4380.6,18.65594494]
[1760012219502,0.002,4380.7,4380.6,3.93938602]
[1760012219716,0.002,4380.7,4380.6,33.96221394]
[1760012219914,0.002,4380.7,4380.6,36.19115647]
[1760012220253,0.002,4380.7,4380.6,21.37245247]
[1760012220520,0.002,4380.7,4380.6,6.19115647]
[1760012220722,0.002,4380.7,4380.6,1.65659371]
[1760012220892,0.002,4380.7,4380.6,3.93938602]
[1760012221693,0.002,4380.7,4380.6,6.68005002]
[1760012221894,0.002,4380.7,4380.6,3.82578602]
[1760012222529,0.002,4380.7,4380.6,6.68034802]
[1760012222740,0.002,4380.7,4380.6,3.82578602]
[1760012223025,0.002,4380.7,4380.6,4.62865412]
[1760012223831,0.002,4380.7,4380.6,7.87970512]
[1760012224025,0.002,4380.7,4380.6,8.06809212]
[1760012224330,0.002,4380.7,4380.6,4.62865412]
[1760012226565,0.002,4380.7,4380.6,2.34586181]
[1760012226745,0.002,4380.7,4380.6,0.68629371]
[1760012226746,2.2847402,4380.7,4380.6,0.68629371]
[1760012226943,2.2847402,4380.7,4380.6,6.462]
[1760012227253,2.7463402,4380.7,4380.6,6.462]
[1760012230550,0.002,4380.7,4380.6,6.462]
[1760012230728,2.2847402,4380.7,4380.6,6.462]
[1760012233262,2.7335402,4380.7,4380.6,6.462]
[1760012233529,3.24651783,4380.7,4380.6,0.001]
[1760012234137,2.79771783,4380.7,4380.6,0.001]
[1760012234364,2.2847402,4380.7,4380.6,0.001]
[1760012235242,2.7335402,4380.7,4380.6,0.001]
[1760012237636,6.78615169,4380.7,4380.6,0.001]
[1760012238875,2.7335402,4380.7,4380.6,0.001]
[1760012239876,2.7327402,4380.7,4380.6,0.001]
[1760012240382,3.35195098,4380.7,4380.6,0.001]
[1760012242372,5.27195098,4380.7,4380.6,0.001]
[1760012243152,6.44844626,4380.7,4380.6,0.001]
[1760012243483,5.95753128,4380.7,4380.6,0.001]
[1760012243696,10.01014277,4380.7,4380.6,0.001]
[1760012243858,10.50098627,4380.7,4380.6,0.001]
[1760012244571,16.96298627,4380.7,4380.6,0.001]
[1760012247091,10.50098627,4380.7,4380.6,0.001]
[1760012247271,19.33698627,4380.7,4380.6,0.001]
[1760012247478,19.33649195,4380.7,4380.6,0.001]
[1760012249566,10.50049195,4380.7,4380.6,0.001]
[1760012250187,6.44788046,4380.7,4380.6,0.001]
[1760012250386,12.91088046,4380.7,4380.6,0.001]
[1760012251765,6.44788046,4380.7,4380.6,0.001]
[1760012251966,12.91088046,4380.7,4380.6,0.001]
[1760012252503,6.44788046,4380.7,4380.6,0.001]
[1760012252679,12.91088046,4380.7,4380.6,0.001]
[1760012253195,6.44788046,4380.7,4380.6,0.001]
[1760012253398,12.22530016,4380.7,4380.6,0.001]
[1760012253700,12.31670836,4380.7,4380.6,0.001]
[1760012257305,12.92964484,4380.7,4380.6,0.001]
[1760012257513,12.31789639,4380.7,4380.6,0.001]
[1760012260082,12.31709639,4380.7,4380.6,0.001]
[1760012260283,12.9315179,4380.7,4380.6,0.001]
[1760012260798,12.31709639,4380.7,4380.6,0.001]
[1760012261090,12.9315179,4380.7,4380.6,0.001]
[1760012263411,12.31709639,4380.7,4380.6,0.001]
[1760012263717,12.93210056,4380.7,4380.6,0.001]
[1760012264622,12.31709639,4380.7,4380.6,0.001]
[1760012266414,13.13753029,4380.7,4380.6,0.001]
[1760012270221,12.31709639,4380.7,4380.6,0.001]
[1760012271825,13.1381578,4380.7,4380.6,0.001]
[1760012272131,12.31709639,4380.7,4380.6,0.001]
[1760012276718,5.85409639,4380.7,4380.6,0.001]
[1760012277046,12.42779162,4380.7,4380.6,0.001]
[1760012277232,11.60647741,4380.7,4380.6,0.001]
[1760012277858,12.42779162,4380.7,4380.6,0.001]
[1760012278561,16.48040311,4380.7,4380.6,0.001]
[1760012279940,15.6590889,4380.7,4380.6,0.001]
[1760012281870,16.87955992,4380.7,4380.6,0.001]
[1760012282769,15.6590889,4380.7,4380.6,0.001]
[1760012283134,16.89045443,4380.7,4380.6,0.001]
[1760012283669,15.6582889,4380.7,4380.6,0.001]
[1760012285631,16.89026343,4380.7,4380.6,0.001]
[1760012287132,24.01026343,4380.7,4380.6,0.001]
[1760012287887,23.91026343,4380.7,4380.6,0.001]
[1760012290741,17.44726343,4380.7,4380.6,0.001]
[1760012290943,16.2152889,4380.7,4380.6,0.001]
[1760012291267,12.16267741,4380.7,4380.6,0.001]
[1760012291567,2.67387741,4380.7,4380.6,0.001]
[1760012291803,5.03937741,4380.7,4380.6,0.001]
[1760012292999,5.04137741,4380.7,4380.6,0.001]
[1760012293962,2.28300077,4380.2,4380.1,0.001]
[1760012294803,2.28296468,4380.3,4380.1,0.001]
[1760012294967,0.1136,4380.4,4380.1,0.001]
[1760012295160,2.28300077,4380.2,4380.1,0.001]
[1760012295412,0.1136,4380.4,4380.1,0.001]
[1760012295595,0.0049,4380.6,4380.3,0.6336]
[1760012295798,0.0049,4380.6,4380.2,5.32443]
[1760012295799,2.28285408,4380.5,4380.4,1.49774196]
[1760012297598,2.28285408,4380.5,4380.4,1.27464196]
[1760012299900,2.28769775,4380.6,4380.4,1.27464196]
[1760012300104,2.28769775,4380.6,4380.4,1.49774196]
[1760012300269,2.28769775,4380.6,4380.5,0.6799342]
[1760012301373,2.28769775,4380.6,4380.5,0.9030342]
[1760012301595,0.0049,4380.6,4380.5,1.5366342]
[1760012301907,0.0049,4380.6,4380.5,1.6502342]
[1760012306301,0.0041,4380.6,4380.5,1.6502342]
[1760012307308,0.0041,4380.6,4380.5,3.95590706]
[1760012308302,0.0041,4380.6,4380.5,1.6502342]
[1760012308675,0.0041,4380.6,4380.5,3.93307862]
[1760012309404,0.0041,4380.6,4380.5,7.2545342]
[1760012309609,0.0041,4380.6,4380.5,7.8881342]
[1760012310014,2.28689231,4380.6,4380.5,7.8881342]
[1760012310202,2.28889231,4380.6,4380.5,7.2082]
[1760012310914,2.28889231,4380.6,4380.5,6.461]
[1760012312839,2.28889231,4380.6,4380.5,6.6841]
[1760012313003,2.28889231,4380.6,4380.5,6.461]
[1760012316526,2.72889231,4380.6,4380.5,6.461]
[1760012317332,2.28289653,4380.4,4380.3,0.6346]
[1760012317536,2.28289653,4380.4,4380.3,7.0956]
[1760012317738,2.28289653,4380.4,4380.3,7.81662]
[1760012320233,2.28289653,4380.4,4380.3,7.0956]
[1760012322031,2.28289653,4380.4,4380.3,6.462]
[1760012326058,2.28889231,4380.6,4380.4,0.6336]
[1760012326059,0.0061,4380.6,4380.4,0.6336]
[1760012326257,0.0061,4380.6,4380.5,23.07221686]
[1760012326447,0.0061,4380.6,4380.5,25.57605507]
[1760012326645,0.002,4381.6,4380.5,25.57605507]
[1760012326646,0.002,4381.6,4380.9,2.28263598]
[1760012326861,0.002,4381.6,4381.1,24.63639878]
[1760012327156,0.002,4381.6,4381.1,24.54678478]
[1760012327460,0.002,4381.6,4381.1,22.85313369]
[1760012327644,0.002,4381.6,4381.1,25.10490414]
[1760012328155,0.002,4381.6,4381.1,26.24248914]
[1760012328930,0.002,4381.6,4381.1,25.22448914]
[1760012329141,0.0012,4381.2,4381.1,25.22448914]
[1760012329634,0.0012,4381.2,4381.1,27.14448914]
[1760012330354,0.0012,4381.2,4381.1,30.54448914]
[1760012330758,0.0012,4381.2,4381.1,15.83438014]
[1760012331470,0.0012,4381.2,4381.1,19.21117614]
[1760012332264,0.0012,4381.2,4381.1,7.50785114]
[1760012332439,0.0012,4381.2,4381.1,18.12692314]
[1760012333359,0.0012,4381.2,4381.1,27.11622714]
[1760012334231,0.0012,4381.2,4381.1,28.05175314]
[1760012335460,0.0012,4381.2,4381.1,28.06368614]
[1760012336267,0.0012,4381.2,4381.1,28.06129714]
[1760012337237,0.0012,4381.2,4381.1,7.50785114]
[1760012337467,0.0012,4381.2,4381.1,29.11908723]
[1760012338568,0.0012,4381.2,4381.1,35.17121523]
[1760012338869,0.0012,4381.2,4381.1,34.02978823]
[1760012339164,0.0012,4381.2,4381.1,18.79016023]
[1760012339381,0.0012,4381.2,4381.1,14.15099723]
[1760012339539,0.0012,4381.2,4381.1,12.27152423]
[1760012339742,0.0012,4381.2,4381.1,11.33335323]
[1760012339940,0.0012,4381.2,4381.1,12.91600923]
[1760012340368,0.0012,4381.2,4381.1,7.41650223]
[1760012340666,0.0012,4381.2,4381.1,13.87450223]
[1760012341061,0.0012,4381.2,4381.1,16.24739623]